lending/lending_fUSD_20240202
["ID","MTS","AMOUNT","RATE_DAILY","PERIOD"]
[313176461,1706885446063,-500.0,0.00035616,2]
[313176462,1706885446073,-500.0,0.00035616,2]
[313176463,1706885446083,-500.0,0.00035616,2]
[313176464,1706885446092,-500.0,0.00035616,2]
[313176465,1706885446102,-500.0,0.00035616,2]
[313176466,1706885446111,-500.0,0.00035616,2]
[313176467,1706885446121,-500.0,0.00035616,2]
[313176468,1706885446131,-500.0,0.00035616,2]
[313176469,1706885446140,-500.0,0.00035616,2]
[313176470,1706885446149,-500.0,0.00035616,2]
[313176471,1706885446160,-500.0,0.00035616,2]
[313176472,1706885446169,-500.0,0.00035616,2]
[313176473,1706885446179,-500.0,0.00035616,2]
[313176474,1706885446189,-10000.0,0.00035616,2]
[313176475,1706885446198,-5302.06,0.00035616,2]
[313176476,1706885446209,-155.0,0.00035617,2]
[313176477,1706885446219,-1996.84,0.00035665,2]
[313176478,1706885446228,-207.0,0.00035666,18]
[313176479,1706885446237,-306.09,0.00035684,2]
[313176480,1706885446247,-836.33102908,0.000357,2]
[313176481,1706885446256,-150.0,0.00035905,2]
[313176482,1706885446266,-150.1,0.00035992,2]
[313176483,1706885446275,-333.56124735,0.00035997,2]
[313176484,1706885446284,-50000.0,0.00036,6]
[313176485,1706885446294,-1000.0,0.00036,2]
[313176486,1706885446303,-299.43310887,0.00036,4]
[313176487,1706885446312,-2000.0,0.00036,2]
[313176488,1706885446322,-600.0,0.00036,37]
[313176489,1706885446331,-722.58842553,0.00036,30]
[313176490,1706885446341,-390.75505125,0.00036,2]
[313176491,1706885446351,-390.75505125,0.00036,2]
[313176492,1706885446360,-390.75505125,0.00036,2]
[313176493,1706885446369,-390.75505125,0.00036,2]
[313176494,1706885446379,-390.75505125,0.00036,2]
[313176495,1706885446389,-390.75505125,0.00036,2]
[313176496,1706885446398,-390.75505125,0.00036,2]
[313176497,1706885446409,-1626.42114875,0.00036,2]
[313176498,1706885446419,-1626.42114875,0.00036,2]
[313176499,1706885446428,-1626.42114875,0.00036,2]
[313176500,1706885446438,-1626.42114875,0.00036,2]
[313176501,1706885446449,-1626.42114875,0.00036,2]
[313176502,1706885446459,-1626.42114875,0.00036,2]
[313176503,1706885446468,-1626.42114875,0.00036,2]
[313176504,1706885446477,-1626.42114875,0.00036,2]
[313176505,1706885446486,-1626.42114875,0.00036,2]
[313176506,1706885446496,-1626.42114875,0.00036,2]
[313176507,1706885446506,-1626.42114875,0.00036,2]
[313176508,1706885446515,-1626.42114875,0.00036,2]
[313176509,1706885446524,-1626.42114875,0.00036,2]
[313176510,1706885446534,-1626.42114875,0.00036,2]
[313176512,1706885446543,-1626.42114875,0.00036,2]
[313176513,1706885446553,-1626.42114875,0.00036,2]
[313176514,1706885446563,-1626.42114875,0.00036,2]
[313176515,1706885446573,-1626.42114875,0.00036,2]
[313176516,1706885446583,-1626.42114875,0.00036,2]
[313176517,1706885446593,-1626.42114875,0.00036,2]
[313176518,1706885446602,-1626.42114875,0.00036,2]
[313176519,1706885446612,-1626.42114875,0.00036,2]
[313176520,1706885446622,-1626.42114875,0.00036,2]
[313176521,1706885446632,-1626.42114875,0.00036,2]
[313176522,1706885446642,-1626.42114875,0.00036,2]
[313176523,1706885446652,-1626.42114875,0.00036,2]
[313176524,1706885446662,-1626.42114875,0.00036,2]
[313176525,1706885446671,-1626.42114875,0.00036,2]
[313176526,1706885446680,-1626.42114875,0.00036,2]
[313176527,1706885446689,-1626.42114875,0.00036,2]
[313176528,1706885446698,-1626.42114875,0.00036,2]
[313176529,1706885446708,-1626.42114875,0.00036,2]
[313176530,1706885446719,-1626.42114875,0.00036,2]
[313176531,1706885446728,-1626.42114875,0.00036,2]
[313176532,1706885446737,-1626.42114875,0.00036,2]
[313176533,1706885446746,-1626.42114875,0.00036,2]
[313176534,1706885446755,-1626.42114875,0.00036,2]
[313176535,1706885446766,-1626.42114875,0.00036,2]
[313176536,1706885446775,-1626.42114875,0.00036,2]
[313176537,1706885446784,-1626.42114875,0.00036,2]
[313176538,1706885446795,-1626.42114875,0.00036,2]
[313176539,1706885446805,-1626.42114875,0.00036,2]
[313176540,1706885446815,-1626.42114875,0.00036,2]
[313176541,1706885446825,-1626.42114875,0.00036,2]
[313176542,1706885446835,-1626.42114875,0.00036,2]
[313176543,1706885446845,-1626.42114875,0.00036,2]
[313176544,1706885446855,-1626.42114875,0.00036,2]
[313176545,1706885446864,-1626.42114875,0.00036,2]
[313176546,1706885446874,-1626.42114875,0.00036,2]
[313176547,1706885446883,-1626.42114875,0.00036,2]
[313176548,1706885446893,-1626.42114875,0.00036,2]
[313176549,1706885446903,-1626.42114875,0.00036,2]
[313176550,1706885446914,-1626.42114875,0.00036,2]
[313176551,1706885446924,-1626.42114875,0.00036,2]
[313176552,1706885446934,-1626.42114875,0.00036,2]
[313176553,1706885446944,-1626.42114875,0.00036,2]
[313176554,1706885446953,-1626.42114875,0.00036,2]
[313176555,1706885446963,-1626.42114875,0.00036,2]
[313176556,1706885446974,-1626.42114875,0.00036,2]
[313176557,1706885446984,-1626.42114875,0.00036,2]
[313176558,1706885446994,-1626.42114875,0.00036,2]
[313176559,1706885447004,-1626.42114875,0.00036,2]
[313176560,1706885447014,-1626.42114875,0.00036,2]
[313176561,1706885447024,-1626.42114875,0.00036,2]
[313176562,1706885447034,-1626.42114875,0.00036,2]
[313176563,1706885447044,-1626.42114875,0.00036,2]
[313176564,1706885447054,-1626.42114875,0.00036,2]
[313176565,1706885447064,-1626.42114875,0.00036,2]
[313176566,1706885447074,-1626.42114875,0.00036,2]
[313176567,1706885447083,-1626.42114875,0.00036,2]
[313176568,1706885447094,-1626.42114875,0.00036,2]
[313176569,1706885447104,-1626.42114875,0.00036,2]
[313176570,1706885447114,-1626.42114875,0.00036,2]
[313176571,1706885447124,-1626.42114875,0.00036,2]
[313176572,1706885447133,-1626.42114875,0.00036,2]
[313176573,1706885447143,-1626.42114875,0.00036,2]
[313176574,1706885447152,-1626.42114875,0.00036,2]
[313176575,1706885447163,-1626.42114875,0.00036,2]
[313176576,1706885447172,-1626.42114875,0.00036,2]
[313176577,1706885447182,-1626.42114875,0.00036,2]
[313176578,1706885447191,-1626.42114875,0.00036,2]
[313176579,1706885447201,-1626.42114875,0.00036,2]
[313176580,1706885447210,-1626.42114875,0.00036,2]
[313176581,1706885447220,-1626.42114875,0.00036,2]
[313176582,1706885447230,-1626.42114875,0.00036,2]
[313176583,1706885447239,-1626.42114875,0.00036,2]
[313176584,1706885447249,-1626.42114875,0.00036,2]
[313176585,1706885447258,-1626.42114875,0.00036,2]
[313176586,1706885447268,-1626.42114875,0.00036,2]
[313176587,1706885447277,-1626.42114875,0.00036,2]
[313176588,1706885447287,-1626.42114875,0.00036,2]
[313176589,1706885447387,-1626.42114875,0.00036,2]
[313176590,1706885447397,-1626.42114875,0.00036,2]
[313176591,1706885447407,-1626.42114875,0.00036,2]
[313176592,1706885447417,-1626.42114875,0.00036,2]
[313176593,1706885447427,-1626.42114875,0.00036,2]
[313176594,1706885447436,-1626.42114875,0.00036,2]
[313176595,1706885447445,-1626.42114875,0.00036,2]
[313176596,1706885447455,-1626.42114875,0.00036,2]
[313176597,1706885447464,-1626.42114875,0.00036,2]
[313176598,1706885447474,-150.1,0.000361,2]
[313176599,1706885447483,-163.33,0.00036164,2]
[313176600,1706885447493,-1000.0,0.000362,2]
[313176601,1706885447502,-1000.0,0.000362,12]
[313176602,1706885447511,-164.35,0.00036438,2]
[313176603,1706885447520,-150.0,0.00036482,2]
[313176604,1706885447530,-209.83896574,0.0003649,10]
[313176605,1706885447540,-152.68209558,0.00036738,2]
[313176606,1706885447549,-1000.0,0.00036799,2]
[313176607,1706885447558,-10000.0,0.00036934,2]
[313176608,1706885447567,-155.0,0.00036987,2]
[313176609,1706885447577,-5905.75161611,0.00036988,2]
[313176610,1706885447586,-153.0,0.0003699,2]
[313176611,1706885447595,-50000.0,0.00037,7]
[313176612,1706885447604,-208.67815738,0.00037,10]
[313176613,1706885447614,-3906.07193807,0.00037,14]
[313176614,1706885447624,-1000.0,0.00037,7]
[313176615,1706885447633,-2000.0,0.00037,2]
[313176616,1706885447643,-750.0,0.00037,3]
[313176617,1706885447652,-150.0,0.00037059,2]
[313176618,1706885447663,-154.28705535,0.00037082,2]
[313176619,1706885447673,-162.0,0.00037091,2]
[313176620,1706885447682,-1996.84,0.0003722,2]
[313176621,1706885447691,-786.69921868,0.000375,4]
[313176622,1706885447702,-1000.0,0.000375,2]
[313176623,1706885447712,-150.0,0.00037635,2]
[313176624,1706885447725,-32159.85461031,0.00037699,2]
[313176625,1706885447734,-1119.83,0.000377,3]
[313176626,1706885447744,-1119.83,0.000377,3]
[313176627,1706885447754,-1119.83,0.000377,3]
[313176628,1706885447764,-1119.83,0.000377,3]
[313176629,1706885447773,-1119.83,0.000377,3]
[313176630,1706885447782,-1119.83,0.000377,3]
[313176631,1706885447793,-1119.83,0.000377,3]
[313176632,1706885447802,-1119.83,0.000377,3]
[313176633,1706885447811,-1119.83,0.000377,3]
[313176634,1706885447821,-1119.83,0.000377,3]
[313176635,1706885447831,-1119.83,0.000377,3]
[313176636,1706885447840,-1119.83,0.000377,3]
[313176637,1706885447850,-1119.83,0.000377,3]
[313176638,1706885447859,-1119.83,0.000377,3]
[313176639,1706885447868,-1119.83,0.000377,3]
[313176640,1706885447878,-1119.83,0.000377,3]
[313176641,1706885447888,-1119.83,0.000377,3]
[313176642,1706885447897,-1119.83,0.000377,3]
[313176643,1706885447907,-1119.83,0.000377,3]
[313176644,1706885447917,-1119.83,0.000377,3]
[313176645,1706885447927,-157.42799352,0.00037735,2]
[313176646,1706885447937,-218.67495057,0.0003789,7]
[313176647,1706885447946,-300.63022146,0.00037899,2]
[313176648,1706885447956,-239.92081071,0.00037899,2]
[313176649,1706885447965,-8426.29181082,0.000379,2]
[313176650,1706885447974,-672978.374368,0.000379,3]
[313176651,1706885447984,-164.41628169,0.00037925,2]
[313176652,1706885447993,-306.09,0.00037948,2]
[313176653,1706885448002,-2867.0,0.00037984,2]
[313176654,1706885448012,-2896.0,0.00037984,2]
[313176655,1706885448021,-2276.0,0.00037984,2]
[313176656,1706885448030,-333.56124735,0.00037997,2]
[313176657,1706885448040,-300.63022146,0.00037999,2]
[313176658,1706885448050,-239.92081071,0.00037999,2]
[313176659,1706885448059,-50000.0,0.00038,8]
[313176660,1706885448069,-34185.79302249,0.00038,2]
[313176661,1706885448079,-349900.90372476,0.00038,2]
[313176662,1706885448089,-2000.0,0.00038,2]
[313176663,1706885448099,-150.0,0.00038212,2]
[313176664,1706885448108,-607.89,0.00038219,2]
[313176665,1706885448118,-10000.0,0.00038252,2]
[313176666,1706885448128,-201.33219862,0.00038356,7]
[313176667,1706885448137,-249.0,0.00038356,13]
[313176668,1706885448147,-155.0,0.00038357,2]
[313176669,1706885448156,-561.26,0.000385,3]
[313176670,1706885448167,-5905.75161611,0.00038566,2]
[313176671,1706885448176,-1996.84,0.00038775,2]
[313176672,1706885448186,-150.0,0.00038789,2]
[313176673,1706885448195,-154.28705535,0.0003887,2]
[313176674,1706885448205,-8030.38955852,0.0003888,2]
[313176675,1706885448215,-8030.38955848,0.0003888,2]
[313176676,1706885448224,-8030.38955848,0.0003888,2]
[313176677,1706885448233,-8030.38955848,0.0003888,2]
[313176678,1706885448242,-1000.0,0.000389,2]
[313176679,1706885448251,-3119.93163651,0.000389,9]
[313176680,1706885448260,-194.55,0.000389,7]
[313176681,1706885448269,-282.85165656,0.0003898,2]
[313176682,1706885448278,-50000.0,0.00039,9]
[313176683,1706885448287,-50000.0,0.00039,8]
[313176684,1706885448296,-841.76143444,0.00039,4]
[313176685,1706885448306,-1432.91116415,0.00039,2]
[313176686,1706885448314,-624.37029009,0.00039,4]
[313176687,1706885448324,-220.0,0.00039,3]
[313176688,1706885448334,-2000.0,0.00039,2]
[313176689,1706885448343,-150.1,0.00039,2]
[313176690,1706885448352,-800.0,0.00039,3]
[313176691,1706885448361,-3000.0,0.00039,24]
[313176692,1706885448371,-1000.0,0.00039,2]
[313176693,1706885448381,-3000.0,0.0003901,24]
[313176694,1706885448390,-5531.370359,0.0003902,24]
[313176695,1706885448399,-403.47,0.00039178,2]
[313176696,1706885448410,-403.47,0.00039178,2]
[313176697,1706885448419,-403.11,0.00039178,2]
[313176698,1706885448428,-1147.82,0.00039178,2]
[313176699,1706885448437,-1000.0,0.0003926,2]
[313176700,1706885448446,-150.0,0.00039366,2]
[313176701,1706885448455,-10000.0,0.0003957,2]
[313176702,1706885448464,-1000.0,0.000396,15]
[313176703,1706885448474,-2000.0,0.000397,2]
[313176704,1706885448482,-155.0,0.00039727,2]
[313176705,1706885448491,-177.363125,0.00039837,2]
[313176706,1706885448500,-178.082238,0.00039837,2]
[313176707,1706885448509,-745.006193,0.00039837,2]
[313176708,1706885448518,-246.703252,0.00039837,2]
[313176709,1706885448528,-391.971729,0.00039837,2]
[313176710,1706885448538,-150.0,0.00039837,2]
[313176711,1706885448548,-192.849835,0.00039837,2]
[313176712,1706885448559,-198.086897,0.00039837,2]
[313176713,1706885448568,-83202.10365049,0.00039865,2]
[313176714,1706885448578,-150.0,0.00039942,2]
[313176715,1706885448588,-285135.26648355,0.0003999,2]
[313176716,1706885448599,-100000.0,0.0004,10]
[313176717,1706885448608,-155.0,0.0004,2]
[313176718,1706885448617,-1086.42022373,0.0004,10]
[313176719,1706885448627,-22626.6046174,0.0004,4]
[313176720,1706885448637,-326.0,0.0004,2]
[313176721,1706885448646,-313.04147607,0.0004,4]
[313176722,1706885448655,-3762.61832175,0.0004,2]
[313176723,1706885448666,-7081.32074521,0.0004,7]
[313176724,1706885448675,-3816.0,0.0004,7]
[313176725,1706885448685,-620.75062194,0.0004,30]
[313176726,1706885448696,-574.24868674,0.0004,4]
[313176727,1706885448706,-345.32655853,0.0004,4]
[313176728,1706885448718,-1090.5417209,0.0004,4]
[313176729,1706885448729,-181.16284603,0.0004,2]
[313176730,1706885448741,-286.75695691,0.0004,4]
[313176731,1706885448752,-964.87063009,0.0004,2]
[313176732,1706885448762,-238.01192414,0.0004,2]
[313176733,1706885448772,-32500.0,0.0004,30]
[313176734,1706885448781,-212.59691994,0.0004,2]
[313176735,1706885448790,-9154.99959064,0.0004,2]
[313176736,1706885448799,-8989.61734675,0.0004,2]
[313176737,1706885448809,-1145.03107964,0.0004,2]
[313176738,1706885448817,-9283.48884688,0.0004,2]
[313176739,1706885448825,-5360.61125834,0.0004,2]
[313176740,1706885448834,-1507.67527343,0.0004,2]
[313176741,1706885448843,-201.16041946,0.0004,2]
[313176742,1706885448853,-7871.88790451,0.0004,120]
[313176743,1706885448862,-599.999999,0.0004,41]
[313176744,1706885448871,-400.00054335,0.0004,4]
[313176745,1706885448880,-2000.0,0.0004,2]
[313176746,1706885448889,-327.78057413,0.0004,30]
[313176747,1706885448899,-3404.0,0.0004,30]
[313176748,1706885448908,-1000.0,0.0004,15]
[313176749,1706885448918,-266.95150303,0.0004,12]
[313176750,1706885448927,-5905.75161611,0.00040145,5]
[313176751,1706885448937,-1000.0,0.000402,30]
[313176752,1706885448946,-306.09,0.00040212,2]
[313176753,1706885448956,-159.5350938,0.000403,4]
[313176754,1706885448965,-1000.0,0.000403,15]
[313176755,1706885448974,-1996.84,0.0004033,2]
[313176756,1706885448983,-745.006193,0.00040335,2]
[313176757,1706885448992,-391.971729,0.00040335,2]
[313176758,1706885449001,-1000.0,0.000405,30]
[313176759,1706885449011,-154.17,0.000405,4]
[313176760,1706885449020,-154.17,0.000405,4]
[313176761,1706885449115,-154.17,0.000405,4]
[313176762,1706885449125,-154.17,0.000405,4]
[313176763,1706885449134,-154.17,0.000405,4]
[313176764,1706885449143,-154.17,0.000405,4]
[313176765,1706885449153,-1000.0,0.000405,4]
[313176766,1706885449163,-150.0,0.00040501,2]
[313176767,1706885449172,-150.0,0.00040519,2]
[313176768,1706885449181,-207.0,0.00040532,26]
[313176769,1706885449190,-295.18,0.00040548,2]
[313176770,1706885449200,-791.624622,0.00040553,2]
[313176771,1706885449210,-154.28705535,0.00040659,9]
[313176772,1706885449220,-163.33,0.00040685,2]
[313176773,1706885449229,-1000.0,0.00040733,2]
[313176774,1706885449239,-745.006193,0.00040833,2]
[313176775,1706885449249,-391.971729,0.00040833,2]
[313176776,1706885449258,-10000.0,0.00040888,2]
[313176777,1706885449267,-2867.0,0.00040984,2]
[313176778,1706885449278,-333.56124735,0.00040997,2]
[313176779,1706885449289,-100000.0,0.00041,11]
[313176780,1706885449298,-300.0,0.00041,2]
[313176781,1706885449308,-235.66523621,0.00041,5]
[313176782,1706885449317,-20000.0,0.00041,4]
[313176783,1706885449326,-800.0,0.00041,2]
[313176784,1706885449336,-2000.0,0.00041,2]
[313176785,1706885449345,-850.0,0.00041,3]
[313176786,1706885449354,-515.911948,0.00041,14]
[313176787,1706885449364,-791.624622,0.0004106,2]
[313176788,1706885449374,-300.63022146,0.00041095,3]
[313176789,1706885449383,-239.92081071,0.00041095,3]
[313176790,1706885449392,-239.78662964,0.00041096,2]
[313176791,1706885449403,-151.0,0.00041096,14]
[313176792,1706885449413,-151.0,0.00041096,14]
[313176793,1706885449422,-196.899652,0.00041096,14]
[313176794,1706885449431,-151.0,0.00041096,14]
[313176795,1706885449441,-151.0,0.00041096,14]
[313176796,1706885449449,-151.0,0.00041096,14]
[313176797,1706885449458,-151.0,0.00041096,14]
[313176798,1706885449467,-151.0,0.00041096,14]
[313176799,1706885449477,-258.784641,0.00041096,14]
[313176800,1706885449486,-157.9,0.00041096,14]
[313176801,1706885449495,-157.9,0.00041096,14]
[313176802,1706885449505,-157.9,0.00041096,14]
[313176803,1706885449514,-157.9,0.00041096,14]
[313176804,1706885449523,-157.9,0.00041096,14]
[313176805,1706885449534,-157.9,0.00041096,14]
[313176806,1706885449543,-157.9,0.00041096,14]
[313176807,1706885449553,-157.9,0.00041096,14]
[313176808,1706885449562,-157.9,0.00041096,14]
[313176809,1706885449571,-157.9,0.00041096,14]
[313176810,1706885449580,-157.9,0.00041096,14]
[313176811,1706885449589,-157.9,0.00041096,14]
[313176812,1706885449598,-157.9,0.00041096,14]
[313176813,1706885449608,-157.9,0.00041096,14]
[313176814,1706885449617,-157.9,0.00041096,14]
[313176815,1706885449627,-157.9,0.00041096,14]
[313176816,1706885449638,-157.9,0.00041096,14]
[313176817,1706885449647,-157.9,0.00041096,14]
[313176818,1706885449659,-157.9,0.00041096,14]
[313176819,1706885449668,-157.9,0.00041096,14]
[313176820,1706885449678,-151.0,0.00041096,14]
[313176821,1706885449687,-151.0,0.00041096,14]
[313176822,1706885449696,-194.297334,0.00041096,14]
[313176823,1706885449706,-253.893769,0.00041096,14]
[313176824,1706885449716,-166.383863,0.00041096,14]
[313176825,1706885449726,-166.383863,0.00041096,14]
[313176826,1706885449736,-166.383863,0.00041096,14]
[313176827,1706885449744,-166.383863,0.00041096,14]
[313176828,1706885449754,-166.383863,0.00041096,14]
[313176829,1706885449764,-166.383863,0.00041096,14]
[313176830,1706885449774,-166.383863,0.00041096,14]
[313176831,1706885449783,-166.383863,0.00041096,14]
[313176832,1706885449793,-166.383863,0.00041096,14]
[313176833,1706885449802,-166.383863,0.00041096,14]
[313176834,1706885449812,-166.383863,0.00041096,14]
[313176835,1706885449821,-166.383863,0.00041096,14]
[313176836,1706885449831,-166.383863,0.00041096,14]
[313176837,1706885449840,-166.383863,0.00041096,14]
[313176838,1706885449849,-166.383863,0.00041096,14]
[313176839,1706885449859,-166.383863,0.00041096,14]
[313176840,1706885449868,-166.383863,0.00041096,14]
[313176841,1706885449878,-166.383863,0.00041096,14]
[313176842,1706885449888,-166.383863,0.00041096,14]
[313176843,1706885449897,-166.383857,0.00041096,14]
[313176844,1706885449910,-500.0,0.00041096,2]
[313176845,1706885449920,-500.0,0.00041096,2]
[313176846,1706885449930,-500.0,0.00041096,2]
[313176847,1706885449940,-500.0,0.00041096,2]
[313176848,1706885449950,-500.0,0.00041096,2]
[313176849,1706885449959,-500.0,0.00041096,2]
[313176850,1706885449970,-500.0,0.00041096,2]
[313176851,1706885449980,-500.0,0.00041096,2]
[313176852,1706885449989,-500.0,0.00041096,2]
[313176853,1706885449999,-500.0,0.00041096,2]
[313176854,1706885450008,-500.0,0.00041096,2]
[313176855,1706885450018,-500.0,0.00041096,2]
[313176856,1706885450028,-500.0,0.00041096,2]
[313176857,1706885450037,-500.0,0.00041096,2]
[313176858,1706885450046,-500.0,0.00041096,2]
[313176859,1706885450056,-500.0,0.00041096,2]
[313176860,1706885450065,-500.0,0.00041096,2]
[313176861,1706885450074,-180.849016,0.00041096,2]
[313176862,1706885450084,-151.0,0.00041096,2]
[313176863,1706885450093,-151.0,0.00041096,2]
[313176864,1706885450103,-151.0,0.00041096,2]
[313176865,1706885450112,-151.0,0.00041096,2]
[313176866,1706885450122,-151.711612,0.00041096,2]
[313176867,1706885450131,-151.0,0.00041096,14]
[313176868,1706885450140,-151.0,0.00041096,14]
[313176869,1706885450149,-151.0,0.00041096,14]
[313176870,1706885450158,-151.0,0.00041096,14]
[313176871,1706885450167,-151.0,0.00041096,14]
[313176872,1706885450176,-151.0,0.00041096,14]
[313176873,1706885450186,-151.0,0.00041096,14]
[313176874,1706885450195,-151.0,0.00041096,14]
[313176875,1706885450204,-151.0,0.00041096,14]
[313176876,1706885450213,-151.0,0.00041096,14]
[313176877,1706885450223,-151.0,0.00041096,14]
[313176878,1706885450233,-151.0,0.00041096,14]
[313176879,1706885450242,-151.0,0.00041096,14]
[313176880,1706885450251,-151.0,0.00041096,14]
[313176881,1706885450260,-151.0,0.00041096,14]
[313176882,1706885450269,-151.0,0.00041096,14]
[313176883,1706885450278,-151.0,0.00041096,14]
[313176884,1706885450288,-159.946249,0.00041096,14]
[313176885,1706885450297,-151.0,0.00041096,14]
[313176886,1706885450306,-182.381246,0.00041096,14]
[313176887,1706885450315,-151.0,0.00041096,14]
[313176888,1706885450325,-151.0,0.00041096,14]
[313176889,1706885450334,-151.0,0.00041096,14]
[313176890,1706885450343,-151.0,0.00041096,14]
[313176891,1706885450352,-168.624819,0.00041096,14]
[313176892,1706885450361,-189.979298,0.00041096,14]
[313176893,1706885450370,-151.0,0.00041096,14]
[313176894,1706885450380,-151.0,0.00041096,14]
[313176895,1706885450389,-151.0,0.00041096,14]
[313176896,1706885450398,-151.0,0.00041096,14]
[313176897,1706885450408,-151.0,0.00041096,14]
[313176898,1706885450418,-198.488738,0.00041096,14]
[313176899,1706885450427,-151.0,0.00041096,14]
[313176900,1706885450435,-151.0,0.00041096,14]
[313176901,1706885450445,-151.0,0.00041096,14]
[313176902,1706885450454,-151.0,0.00041096,14]
[313176903,1706885450463,-151.0,0.00041096,14]
[313176904,1706885450473,-151.0,0.00041096,14]
[313176905,1706885450482,-166.704014,0.00041096,14]
[313176906,1706885450492,-151.0,0.00041096,14]
[313176907,1706885450501,-151.0,0.00041096,14]
[313176908,1706885450510,-151.0,0.00041096,14]
[313176909,1706885450520,-151.0,0.00041096,14]
[313176910,1706885450530,-216.732222,0.00041096,14]
[313176911,1706885450539,-165.865702,0.00041096,14]
[313176912,1706885450548,-513.67,0.00041096,2]
[313176913,1706885450558,-151.0,0.00041096,14]
[313176914,1706885450567,-151.0,0.00041096,14]
[313176915,1706885450577,-151.0,0.00041096,14]
[313176916,1706885450586,-151.0,0.00041096,14]
[313176917,1706885450595,-151.0,0.00041096,14]
[313176918,1706885450604,-151.0,0.00041096,14]
[313176919,1706885450613,-168.57893,0.00041096,14]
[313176920,1706885450623,-151.0,0.00041096,14]
[313176921,1706885450632,-260.89829,0.00041096,14]
[313176922,1706885450740,-151.0,0.00041096,14]
[313176923,1706885450751,-176.377053,0.00041096,14]
[313176924,1706885450761,-165.154697,0.00041096,14]
[313176925,1706885450770,-165.154697,0.00041096,14]
[313176926,1706885450779,-165.154697,0.00041096,14]
[313176927,1706885450791,-165.154697,0.00041096,14]
[313176928,1706885450800,-165.154697,0.00041096,14]
[313176929,1706885450810,-165.154697,0.00041096,14]
[313176930,1706885450819,-165.154697,0.00041096,14]
[313176931,1706885450829,-165.154697,0.00041096,14]
[313176932,1706885450838,-165.154697,0.00041096,14]
[313176933,1706885450847,-165.154697,0.00041096,14]
[313176934,1706885450857,-165.154697,0.00041096,14]
[313176935,1706885450867,-165.154697,0.00041096,14]
[313176936,1706885450877,-165.154697,0.00041096,14]
[313176937,1706885450887,-165.154697,0.00041096,14]
[313176938,1706885450896,-165.154697,0.00041096,14]
[313176939,1706885450906,-165.154697,0.00041096,14]
[313176940,1706885450916,-165.154697,0.00041096,14]
[313176941,1706885450925,-165.154697,0.00041096,14]
[313176942,1706885450934,-165.154697,0.00041096,14]
[313176943,1706885450943,-165.154689,0.00041096,14]
[313176944,1706885450953,-151.0,0.00041096,14]
[313176945,1706885450966,-151.0,0.00041096,14]
[313176946,1706885450976,-151.0,0.00041096,14]
[313176947,1706885450985,-151.0,0.00041096,14]
[313176948,1706885450995,-151.0,0.00041096,14]
[313176949,1706885451004,-151.0,0.00041096,14]
[313176950,1706885451014,-151.0,0.00041096,14]
[313176951,1706885451023,-181.0,0.00041096,2]
[313176952,1706885451033,-151.0,0.00041096,14]
[313176953,1706885451042,-151.0,0.00041096,14]
[313176954,1706885451051,-151.0,0.00041096,14]
[313176955,1706885451061,-151.0,0.00041096,14]
[313176956,1706885451070,-151.0,0.00041096,14]
[313176957,1706885451080,-151.0,0.00041096,14]
[313176958,1706885451089,-151.0,0.00041096,14]
[313176959,1706885451099,-151.0,0.00041096,14]
[313176960,1706885451108,-151.0,0.00041096,14]
[313176961,1706885451118,-151.0,0.00041096,14]